Cogmind - Beta 10 @@@ ROGUE MODE // 2020.09.15 @ 12:44:01 Player: Espresso Result: Self-destructed Performance ------------- Evolutions (2) 1000 Regions Visited (5) 1000 Robots Destroyed (1) 5 Value Destroyed (10) 10 Prototype IDs (0) 0 Alien Tech Used (0) 0 Bonus (570) 570 TOTAL SCORE: 2585 Bonus ------- Pacifist 270 Aligned with FarCom 300 Cogmind --------- Core Integrity 1/550 Matter 161/300 Energy 100/100 System Corruption 5% Temperature Cool (0) Movement Core (50) Location -8/Materials Parts ------- > --- POWER (2) -------- (None) > --- PROPULSION (5) --- (None) > --- UTILITY (2) ------ Enhanced Optical Array > --- WEAPON (2) ------- (None) > --- INVENTORY (4) ---- (None) Peak State ------------ > --- POWER ------------ Light Ion Engine Light Deuterium Engine > --- PROPULSION ------- Flight Unit Flight Unit > --- UTILITY ---------- Enhanced Optical Array > --- WEAPON ----------- (None) > --- INVENTORY -------- (None) [Rating: 10] Favorites ----------- Power Light Deuterium Engine Engine Light Deuterium Engine Propulsion Flight Unit Flight Unit Flight Unit Utility Enhanced Optical Array Processor Enhanced Optical Array Weapon Mining Laser Special Weapon Mining Laser Build | -11 -10 -10 -10 -9 -8 ------- Run | Scr Mat Min Exi Min Mat Slots Evolved 4 | . . . . . 4 Power 1 | . . . . . 1 Propulsion 3 | . . . . . 3 Utility . | . . . . . . Weapon . | . . . . . . Parts Attached 7 | . . 1 . 1 5 Power 2 | . . . . . 2 Engine 2 | . . . . . 2 Core . | . . . . . . Reactor . | . . . . . . Propulsion 2 | . . . . . 2 Treads . | . . . . . . Leg . | . . . . . . Wheel . | . . . . . . Hover . | . . . . . . Flight 2 | . . . . . 2 Utility 2 | . . . . 1 1 Device . | . . . . . . Storage . | . . . . . . Processor 2 | . . . . 1 1 Hackware . | . . . . . . Protection . | . . . . . . Artifact . | . . . . . . Weapon 1 | . . 1 . . . Energy Gun . | . . . . . . Energy Cannon . | . . . . . . Ballistic Gun . | . . . . . . Ballistic Cannon . | . . . . . . Launcher . | . . . . . . Special Weapon 1 | . . 1 . . . Impact Weapon . | . . . . . . Slashing Weapon . | . . . . . . Piercing Weapon . | . . . . . . Special Melee Weapon . | . . . . . . Unidentified Prototypes . | . . . . . . Parts Lost 5 | . . . . . 5 Power 2 | . . . . . 2 Propulsion 2 | . . . . . 2 Utility 1 | . . . . . 1 Weapon . | . . . . . . Highest Loss Streak 4 | . . . . . 4 Average Slot Usage (%) 9 | . . 3 2 9 18 Engine 1 | . . . . . 2 Flight 1 | . . . . . 3 Processor 6 | . . . . 9 12 Special Weapon 1 | . . 3 2 . . Naked Turns 187 | . 21 79 80 7 . Heaviest Build 8 | . . 1 1 . 8 Greatest Support 8 | 3 3 3 3 3 8 Greatest Overweight (x) 1 | . . . . . 1 Average Overweight (x) . | . . . . . . Largest Inventory Capacity 4 | 4 4 4 4 4 4 Average Capacity 4 | 4 4 4 4 4 4 Most Carried 1 | . . . . . 1 Average Carried . | . . . . . . Final Capacity 4 | 4 4 4 4 4 4 Final Carried . | . . . . . . Class Distribution -------------------- 100% | Mutant Dominant Class ---------------- Mutant | -10/Materials Mutant | -10/Mines Mutant | -10/Exiles Mutant | -9/Mines Mutant | -8/Materials Resources | -11 -10 -10 -10 -9 -8 ----------- Run | Scr Mat Min Exi Min Mat Matter Collected 62 | . . . . . 62 Remotely . | . . . . . . Salvage Created 20 | . . . . . 20 Parts 4 | . . . . . 4 Haulers Intercepted . | . . . . . . Recyclers Shooed 1 | . . . . . 1 Parts Field Recycled . | . . . . . . Retrieved Matter . | . . . . . . Parts Self-Destructed . | . . . . . . Prevented . | . . . . . . Kills | -11 -10 -10 -10 -9 -8 ------- Run | Scr Mat Min Exi Min Mat Combat Hostiles Destroyed 1 | . . . . . 1 Melee 1 | . . . . . 1 Classes Destroyed 1 | . . . . . 1 Swarmer 1 | . . . . . 1 Best Kill Streak 1 | . . . . . 1 Combat Bots Only 1 | . . . . . 1 Max Kills in Single Turn 1 | . . . . . 1 Gunslinging . | . . . . . . Exploded . | . . . . . . Melee 1 | . . . . . 1 Uniques/NPCs Destroyed . | . . . . . . Combat | -11 -10 -10 -10 -9 -8 -------- Run | Scr Mat Min Exi Min Mat Damage Taken 736 | . . . . . 736 Core 549 | . . . . . 549 Absorbed by Shields . | . . . . . . Core Remaining (%) 100 | 100 . . . 100 . Volleys Fired . | . . . . . . Largest . | . . . . . . Hottest . | . . . . . . Shots Fired . | . . . . . . Gun . | . . . . . . Cannon . | . . . . . . Launcher . | . . . . . . Special . | . . . . . . Kinetic . | . . . . . . Thermal . | . . . . . . Explosive . | . . . . . . Electromagnetic . | . . . . . . Robot Hit Streak . | . . . . . . Robot Miss Streak . | . . . . . . Penetration Max . | . . . . . . Secondary Targets . | . . . . . . Shots Hit Robots . | . . . . . . Core Hits 8 | . . . . . 8 Critical Hits . | . . . . . . Critical Kills . | . . . . . . Critical Parts Destroyed . | . . . . . . Melee Attacks . | . . . . . . Impact . | . . . . . . Slashing . | . . . . . . Piercing . | . . . . . . Sneak Attacks . | . . . . . . Combat Hostiles . | . . . . . . Follow-up Attacks . | . . . . . . Damage Inflicted 68 | . . . . . 68 Guns . | . . . . . . Cannons . | . . . . . . Explosions . | . . . . . . Melee . | . . . . . . Ramming 68 | . . . . . 68 Kinetic . | . . . . . . Thermal . | . . . . . . Explosive . | . . . . . . Electromagnetic . | . . . . . . Impact . | . . . . . . Slashing . | . . . . . . Piercing . | . . . . . . Highest Corruption 5 | . . . . . 5 Average Corruption 5 | . . . . . 5 Corruption Purged . | . . . . . . Effects 2 | . . . . . 2 Message Errors 1 | . . . . . 1 Energy Discharges 1 | . . . . . 1 Overload Shots . | . . . . . . Overflow Damage . | . . . . . . Projectiles . | . . . . . . Explosions . | . . . . . . Melee . | . . . . . . Knockbacks . | . . . . . . Impact . | . . . . . . Kinetic . | . . . . . . Secondary . | . . . . . . Self-Inflicted Damage 32 | . . . . . 32 Shots . | . . . . . . Rammed 12 | . . . . . 12 Targets Rammed 12 | . . . . . 12 Kicked . | . . . . . . Crushed . | . . . . . . Highest Temperature . | . . . . . . Average Temperature . | . . . . . . Received Heat Transfer 144 | . . . . . 144 Siege Activations . | . . . . . . Robots Corrupted . | . . . . . . Combat Hostiles . | . . . . . . Parts Fried . | . . . . . . Impact Corruptions . | . . . . . . Robots Melted . | . . . . . . Combat Hostiles . | . . . . . . Parts Melted . | . . . . . . Heat Transferred . | . . . . . . Parts Sabotaged . | . . . . . . Parts Stolen . | . . . . . . Parts Stripped . | . . . . . . Power Chain Reactions . | . . . . . . Missiles Intercepted . | . . . . . . Alert | -11 -10 -10 -10 -9 -8 ------- Run | Scr Mat Min Exi Min Mat Peak Influence 70 | . . . . . 70 Initial . | . . . . . . Average 12 | . . . . . 24 Maximum Alert Level . | . . . . . . Low Security (%) 100 | 100 100 100 . 100 100 Level 1 . | . . . . . . Level 2 . | . . . . . . Level 3 . | . . . . . . Level 4 . | . . . . . . Level 5 . | . . . . . . High Security . | . . . . . . Max Security . | . . . . . . Squads Dispatched 1 | . . . . . 1 Investigation 1 | . . . . . 1 Extermination . | . . . . . . Reinforcement . | . . . . . . Assault . | . . . . . . Garrison . | . . . . . . Intercept . | . . . . . . Construction Impeded . | . . . . . . Haulers Reinforced . | . . . . . . Stealth | -11 -10 -10 -10 -9 -8 --------- Run | Scr Mat Min Exi Min Mat Distress Signals 1 | . . . . . 1 Communications Jammed . | . . . . . . Distress Signals . | . . . . . . Times Spotted 21 | . . . . . 21 Peak Tracking Total 9 | . . . . . 9 Tactical Retreats 4 | . . . . . 4 Traps | -11 -10 -10 -10 -9 -8 ------- Run | Scr Mat Min Exi Min Mat Traps Triggered 1 | . . . . . 1 Indirectly . | . . . . . . Trap Hack Attempts . | . . . . . . Triggered . | . . . . . . Disarmed . | . . . . . . Reprogrammed . | . . . . . . Reused . | . . . . . . Traps Extracted . | . . . . . . Installed . | . . . . . . Triggered . | . . . . . . Machines | -11 -10 -10 -10 -9 -8 ---------- Run | Scr Mat Min Exi Min Mat Machines Disabled . | . . . . . . Max in Single Turn . | . . . . . . Machines Sabotaged . | . . . . . . Garrisons Compromised . | . . . . . . Overloaded Fab Kills . | . . . . . . Fab Network Shutdowns . | . . . . . . Hacking | -11 -10 -10 -10 -9 -8 --------- Run | Scr Mat Min Exi Min Mat Machines Accessed . | . . . . . . Terminals . | . . . . . . Fabricators . | . . . . . . Repair Stations . | . . . . . . Recycling Units . | . . . . . . Scanalyzers . | . . . . . . Garrison Access . | . . . . . . Total Hacks . | . . . . . . Successful . | . . . . . . Failed . | . . . . . . Catastrophic . | . . . . . . Database Lockouts . | . . . . . . Manual . | . . . . . . Terminals . | . . . . . . Fabricators . | . . . . . . Repair Stations . | . . . . . . Recycling Units . | . . . . . . Scanalyzers . | . . . . . . Garrison Access . | . . . . . . Terminal Hacks . | . . . . . . Fabricator Hacks . | . . . . . . Repair Station Hacks . | . . . . . . Recycling Unit Hacks . | . . . . . . Scanalyzer . | . . . . . . Garrison Access Hacks . | . . . . . . Unauthorized Hacks . | . . . . . . Terminals . | . . . . . . Fabricators . | . . . . . . Repair Stations . | . . . . . . Recycling Units . | . . . . . . Scanalyzers . | . . . . . . Garrison Access . | . . . . . . Data Cores Recovered . | . . . . . . Used . | . . . . . . Hacking Detections . | . . . . . . Full Trace Events . | . . . . . . Feedback Events . | . . . . . . Feedback Blocked . | . . . . . . Robot Schematics Acquired . | . . . . . . Robots Built . | . . . . . . Matter . | . . . . . . Time . | . . . . . . Total Robot Build Rating . | . . . . . . Part Schematics Acquired . | . . . . . . Parts Built . | . . . . . . Matter . | . . . . . . Time . | . . . . . . Total Part Build Rating . | . . . . . . Parts Repaired . | . . . . . . Time . | . . . . . . Parts Recycled . | . . . . . . Recycled Matter . | . . . . . . Retrieved Matter . | . . . . . . Retrieved Components . | . . . . . . Parts Scanalyzed . | . . . . . . Part Schematics Acquired . | . . . . . . Parts Damaged . | . . . . . . Bothacking | -11 -10 -10 -10 -9 -8 ------------ Run | Scr Mat Min Exi Min Mat Used RIF Installer . | . . . . . . Robots Hacked . | . . . . . . Non-combat . | . . . . . . Combat . | . . . . . . Robot Hacks Applied . | . . . . . . Relay Couplers Released . | . . . . . . Robots Rewired . | . . . . . . Allies Hacked . | . . . . . . Hacks Repelled . | . . . . . . Allies | -11 -10 -10 -10 -9 -8 -------- Run | Scr Mat Min Exi Min Mat Total Allies 1 | . . 1 . . . Largest Group 1 | . . 1 . . . Highest-Rated Group 31 | . . 31 . . . Highest-Rated Ally 31 | . . 31 . . . Total Orders . | . . . . . . Ally Attacks . | . . . . . . Total Damage . | . . . . . . Kills . | . . . . . . Allies Corrupted . | . . . . . . Allies Melted . | . . . . . . Intel | -11 -10 -10 -10 -9 -8 ------- Run | Scr Mat Min Exi Min Mat Robot Analysis Total . | . . . . . . Derelict Logs Recovered 1 | . . 1 . . . Drone Launches . | . . . . . . Drone Recoveries . | . . . . . . Exploration | -11 -10 -10 -10 -9 -8 ------------- Run | Scr Mat Min Exi Min Mat Turns Passed 461 | 9 21 112 102 32 185 Spaces Moved 862 | 18 42 215 203 56 328 Core 788 | 18 42 215 203 56 254 Treads . | . . . . . . Legs . | . . . . . . Wheels . | . . . . . . Hover . | . . . . . . Flight 74 | . . . . . 74 Fastest Speed 37 | 50 50 50 50 50 37 Average Speed 49 | 50 50 50 50 50 47 Slowest Speed 120 | 50 50 50 50 50 120 Overloaded Moves . | . . . . . . Propulsion Burnouts . | . . . . . . Robots Hopped 3 | . . . . . 3 Cave-ins Triggered . | . . . . . . Exploration Rate (%) 31 | 3 19 60 41 15 50 Regions Visited 5 Branch Regions 3 Pre-discovered Areas . | . . . . . . Known Exits Taken 1 | . . . 1 . . Unknown Exits Taken 4 | 1 1 1 . 1 . Scrap Searched 1 | . . 1 . . . Spaces Dug . | . . . . . . Terrain Destroyed . | . . . . . . Melee . | . . . . . . Projectile . | . . . . . . AOE . | . . . . . . Terrain Rammed . | . . . . . . Walls Destroyed . | . . . . . . Machines Disabled . | . . . . . . Actions | -11 -10 -10 -10 -9 -8 --------- Run | Scr Mat Min Exi Min Mat Total 887 | 17 41 218 203 58 350 Wait 12 | . . 3 . 2 7 Move 851 | 17 41 214 202 55 322 Hop 3 | . . . . . 3 Pick Up 1 | . . . . . 1 Fast Attach 6 | . . 1 . 1 4 Attach 1 | . . . . . 1 Detach . | . . . . . . Swap . | . . . . . . Drop 1 | . . . 1 . . Fire . | . . . . . . Melee . | . . . . . . Ram 12 | . . . . . 12 Kick . | . . . . . . Crush . | . . . . . . Escape Stasis . | . . . . . . Rewire . | . . . . . . Trap . | . . . . . . Miscellaneous . | . . . . . . Route ------- -11/Scrapyard -10/Materials -10/Mines -10/Exiles (discovered 2 exits: *Min x2) -9/Mines -8/Materials History --------- Turn | Location | Event 3 | -11/Scrapyard | Discovered new exit (range 15) 10 | -11/Scrapyard | Entered Materials 29 | -10/Materials | Discovered new exit (range 6) 31 | -10/Materials | Entered Mines 108 | -10/Mines | Received a Mining Laser from a helpful Derelict 141 | -10/Mines | Deemed a non-threat by the Exiles lab entrance 141 | -10/Mines | Discovered new exit (range 5) 143 | -10/Mines | Entered Exiles 144 | -10/Exiles | Identified exit to Mines 156 | -10/Exiles | Met 8R-AWN 165 | -10/Exiles | Met EX-HEX 183 | -10/Exiles | Met EX-BIN 188 | -10/Exiles | Aligned with FarCom system 189 | -10/Exiles | Given EX-Vault access code 245 | -10/Exiles | Entered Mines 273 | -9/Mines | Discovered new exit (range 5) 277 | -9/Mines | Entered Materials 277 | -8/Materials | Evolved 4 slots: Power x1, Propulsion x3 305 | -8/Materials | Build established: Mutant 370 | -8/Materials | Core integrity fell below 50% 415 | -8/Materials | Core integrity fell below 20% 443 | -8/Materials | Lost 4 parts (2p2n) 462 | -8/Materials | Self-destructed Last Messages --------------- R-06 Scavenger collects Lgt. Assault Rifle. System corrupted: Energy discharge (-40). T-07 Excavator is excavating. Penetrated by Slug. Triggered Alarm Trap. An alarm sounds. ALERT: Alarm triggered, dispatching investigation squad. Lgt. Ion Engine destroyed. Penetrated by Slug. Flight Unit destroyed. A-02 Transporter destroyed. Flight Unit destroyed. Lgt. Deuterium Engine destroyed. Acquired 42 matter. Penetrated by Slug. U-05 Engineer lays Concrete. R-06 Scavenger collects Prototype Energy Gun. Slammed into R-06 Scavenger. K-01 Serf collects debris. Slug penetrates Wall. Map ----- +----------------------------------------------------+ | ??????????????????????????????????????? | | ??????????????????????????????????????? | | ??????????????????????????????????????? | | ??????????????????????????????????????? | | ??????????????????????????????????????? | | ??????????????????????????????????????? | | ??????????????????????????????????????? | | ??????????????????????????????????????? | | ??????????????????????????????????????? | | ??????????????????????????????????????? | | ??????????????????????????????????????? | | ??????????????????????????????????????? | | ??????????????????????????????????????? | | ??????????????????????????????????????? | | ????????????##########????????????????? | | ????????????# #????????????????? | | ????????????#""" "" #????????????????? | | ????????????#""" Y" #????????????????? | | ????????????#""" "" #????????????????? | | ????????????# #????????????????? | | ????????????#""" [ #????????????????? | | ????????????#""" #????????????????? | | ????????????#""" #????????????????? | | ????????????# #????????????????? | | ???##############+################????? | | ?# @r #????? | | ?? """ """ """ # #????? | | ?? """ """ """ # Y #????? | | ?# """ """ """ ############### #????? | | ?# #?# % !#??????#????? | | ?# / [ ! #?# #???????????? | | ??########+#####?#! #???????????? | | ????????# ###### #???????????? | | ????????# g h #???????????? | | ????????# ######g """#???????????? | | ????????# #????# """#???????????? | | ????????# #????# """#???????????? | | ????????# #????# #??????#????? | | ????????# ##########+####### #????? | | ????????# #????? | | ????????# +????? | | ????????# #????? | | ????????# # ###/###########????? | | ???????Y# #! !??# #????????? | | ????????# #! ???# #????????? | | ????????# ##!!!????# ########## | | ????????# ?###?????# + [ [! | | ????????? ?????????# # [[[ | | ?????????????????????# + | | ?????????????????????# #####/#### | +----------------------------------------------------+ Best States ------------- Heat Dissipation 31 Energy Generation 19 Energy Capacity 165 Matter Stores 161 Matter Capacity 300 Sight Range 22 Terrain Scan Density 85 Evasion (%) 62 Item Schematics ----------------- None Robot Schematics ------------------ None Fabricated ------------ Nothing Alien Tech Used ----------------- None Achievements -------------- Fist Fight Challenges ------------ None Game ------ Seed AdvancedHardcellChip Manual? 0 Play Time 00:07:12 Cumulative 3.4 hours Start 2020.09.15 @ 12:39:13 End 2020.09.15 @ 12:44:01 Sessions 1 Manual Loads 0 Difficulty Rogue Special Mode None Game No. 9 Rogue 9 Adventurer 0 Explorer 0 Win Type - Total 0 Types 0/0/0/0/0/0/0/0/0 Lore% 11 Gallery% 13 Achievement% 13 Wizard Run 0 Options --------- ASCII 0 Keyboard 0 Movement Numpad Keybinds 0 Fullscreen 1 Font 18/TerminusBold Map View 76x50 Tactical HUD 0 Map Filters NONE Filters NONE Steam 1 RUN: 7d61224d-aef6-4b8c-936f-18317bfb80b4